Cogmind - Beta 13 @@@ ROGUE MODE // 2024.03.31 @ 19:02:36 Player: nevada Result: Self-destructed Performance ------------- Evolutions (2) 1000 Regions Visited (4) 800 Robots Destroyed (10) 50 Value Destroyed (185) 185 Prototype IDs (0) 0 Alien Tech Used (0) 0 Bonus (200) 200 TOTAL SCORE: 2235 Bonus ------- Pacifist 200 Cogmind --------- Core Integrity 542/550 Matter 249/300 Energy 116/240 System Corruption 0% Temperature Cool (4) Movement Flying (280) Ox3 Location -8/Materials Parts ------- > --- POWER (2) -------- Nuclear Core > --- PROPULSION (4) --- Flight Unit Flight Unit Flight Unit > --- UTILITY (3) ------ Weight Redist. System Advanced Visual Processing Unit Seismic Detector > --- WEAPON (2) ------- Shock Rifle Assault Rifle > --- INVENTORY (5) ---- Improved Heat Sink Peak State ------------ > --- POWER ------------ Nuclear Core > --- PROPULSION ------- Flight Unit Flight Unit Flight Unit Flight Unit > --- UTILITY ---------- Weight Redist. System Advanced Visual Processing Unit Seismic Detector > --- WEAPON ----------- Shock Rifle Assault Rifle > --- INVENTORY -------- Improved Heat Sink [Rating: 17] Favorites ----------- Power Light Ion Engine Engine Light Ion Engine Power Core Nuclear Core Propulsion Flight Unit Leg Aluminum Leg Wheel Wheel Flight Unit Flight Unit Utility Seismic Detector Device Seismic Detector Storage Small Storage Unit Processor Advanced Visual Processing Unit Weapon Assault Rifle Energy Gun Shock Rifle Ballistic Gun Assault Rifle Build | -11 -10 -9 -9 -8 ------- Run | Yrd Mat Mat Min Mat Slots Evolved 4 | . . 2 . 2 Power 1 | . . . . 1 Propulsion 2 | . . 1 . 1 Utility 1 | . . 1 . . Weapon . | . . . . . Parts Attached 18 | 2 1 5 5 5 Power 3 | . . . 2 1 Engine 2 | . . . 2 . Core 1 | . . . . 1 Reactor . | . . . . . Propulsion 10 | 2 . 3 3 2 Treads . | . . . . . Leg . | . . . . . Wheel 2 | 2 . . . . Hover . | . . . . . Flight 8 | . . 3 3 2 Utility 3 | . 1 1 . 1 Device 2 | . 1 1 . . Storage . | . . . . . Processor 1 | . . . . 1 Hackware . | . . . . . Protection . | . . . . . Artifact . | . . . . . Weapon 2 | . . 1 . 1 Energy Gun 1 | . . . . 1 Energy Cannon . | . . . . . Ballistic Gun 1 | . . 1 . . Ballistic Cannon . | . . . . . Launcher . | . . . . . Special Weapon . | . . . . . Impact Weapon . | . . . . . Slashing Weapon . | . . . . . Piercing Weapon . | . . . . . Special Melee Weapon . | . . . . . Unidentified Prototypes . | . . . . . Parts Lost 8 | . . 1 6 1 Power 3 | . . . 3 . Propulsion 4 | . . 1 2 1 Utility . | . . . . . Weapon 1 | . . . 1 . Highest Loss Streak 3 | . . 1 3 1 To Critical Strikes . | . . . . . Average Slot Usage (%) 73 | . 94 80 67 66 Engine 8 | . 14 11 8 . Wheel 5 | . 28 9 . . Flight 21 | . . 19 23 36 Device 18 | . 8 13 22 18 Storage 2 | . 14 5 . . Ballistic Gun 16 | . 28 22 13 9 Naked Turns . | . . . . . Heaviest Build 13 | 12 13 13 8 3 Greatest Support 26 | 26 26 26 18 8 Greatest Overweight (x) . | . . . . . Average Overweight (x) . | . . . . . Largest Inventory Capacity 8 | 8 8 8 5 5 Average Capacity 5 | 8 8 6 5 5 Most Carried 8 | 6 7 8 3 3 Average Carried 2 | 6 6 3 . 1 Final Capacity 8 | 8 8 5 5 5 Final Carried 6 | 6 6 2 2 1 Class Distribution -------------------- 87% | Mutant 12% | Scavenger-Mutant Dominant Class ---------------- Mutant | -10/Materials Mutant | -9/Materials Mutant | -9/Mines Scavenger-Mutant | -8/Materials Resources | -11 -10 -9 -9 -8 ----------- Run | Yrd Mat Mat Min Mat Matter Collected 505 | 200 30 49 226 . Remotely . | . . . . . Salvage Created 233 | . . 49 184 . Parts 16 | . . 7 9 . Haulers Intercepted . | . . . . . Recyclers Shooed . | . . . . . Parts Field Recycled . | . . . . . Retrieved Matter . | . . . . . Parts Self-Destructed . | . . . . . Prevented . | . . . . . Kills | -11 -10 -9 -9 -8 ------- Run | Yrd Mat Mat Min Mat Combat Hostiles Destroyed 10 | . . 3 7 . Guns 10 | . . 3 7 . Classes Destroyed 2 | . . 1 1 . Swarmer 7 | . . 3 4 . Grunt 3 | . . . 3 . Best Kill Streak 4 | . . 3 4 . Combat Bots Only 4 | . . 3 4 . Max Kills in Single Turn 1 | . . 1 1 . Gunslinging . | . . . . . Exploded . | . . . . . Melee . | . . . . . Uniques/NPCs Destroyed . | . . . . . Combat | -11 -10 -9 -9 -8 -------- Run | Yrd Mat Mat Min Mat Hostile Shots Fired 95 | . 6 21 57 11 Missed 30 | . 3 9 17 1 Damage Taken 675 | . 31 126 428 90 Core 152 | . 11 38 95 8 Absorbed by Shields . | . . . . . Core Remaining (%) 87 | 100 95 . 66 . Volleys Fired 47 | . . 15 30 2 Largest 2 | . . 2 2 2 Hottest 70 | . . 40 40 70 Shots Fired 74 | . . 30 40 4 Gun 74 | . . 30 40 4 Cannon . | . . . . . Launcher . | . . . . . Special . | . . . . . Kinetic 72 | . . 30 40 2 Thermal . | . . . . . Explosive . | . . . . . Electromagnetic 2 | . . . . 2 Robot Hit Streak 9 | . . 3 9 4 Robot Miss Streak 3 | . . 2 3 1 Penetration Max . | . . . . . Secondary Targets . | . . . . . Shots Hit Robots 43 | . . 15 26 2 Core Hits 15 | . . 4 11 . Critical Kills 1 | . . . 1 . Critical Parts Destroyed 1 | . . . 1 . Critical Strikes 2 | . . . 2 . Destroy 2 | . . . 2 . Melee Attacks . | . . . . . Impact . | . . . . . Slashing . | . . . . . Piercing . | . . . . . Sneak Attacks . | . . . . . Combat Hostiles . | . . . . . Follow-up Attacks . | . . . . . Damage Inflicted 540 | . . 201 308 31 Guns 540 | . . 201 308 31 Cannons . | . . . . . Explosions . | . . . . . Melee . | . . . . . Ramming . | . . . . . Kinetic 509 | . . 201 308 . Thermal . | . . . . . Explosive . | . . . . . Electromagnetic 31 | . . . . 31 Impact . | . . . . . Slashing . | . . . . . Piercing . | . . . . . Highest Corruption . | . . . . . Average Corruption . | . . . . . Corruption Purged . | . . . . . Corruption Blocked . | . . . . . Overload Shots . | . . . . . Overflow Damage . | . . . . . Projectiles . | . . . . . Explosions . | . . . . . Melee . | . . . . . Knockbacks . | . . . . . Impact . | . . . . . Kinetic . | . . . . . Secondary . | . . . . . Self-Inflicted Damage . | . . . . . Shots . | . . . . . Rammed . | . . . . . Targets Rammed . | . . . . . Kicked . | . . . . . Crushed . | . . . . . Highest Temperature 5 | . . 2 5 4 Average Temperature 2 | . . 1 3 3 Received Heat Transfer 198 | . 18 39 141 . Siege Activations . | . . . . . Robots Corrupted . | . . . . . Combat Hostiles . | . . . . . Parts Fried . | . . . . . Impact Corruptions . | . . . . . Robots Melted . | . . . . . Combat Hostiles . | . . . . . Parts Melted . | . . . . . Heat Transferred . | . . . . . Parts Sabotaged . | . . . . . Parts Stolen . | . . . . . Parts Stripped . | . . . . . Power Chain Reactions . | . . . . . Alert | -11 -10 -9 -9 -8 ------- Run | Yrd Mat Mat Min Mat Peak Influence 283 | . 30 172 283 124 Initial 109 | . . 12 63 109 Average 132 | . 12 90 180 111 Maximum Alert Level 1 | . . . 1 . Low Security (%) 66 | 100 100 100 38 100 Level 1 33 | . . . 61 . Level 2 . | . . . . . Level 3 . | . . . . . Level 4 . | . . . . . Level 5 . | . . . . . High Security . | . . . . . Max Security . | . . . . . Squads Dispatched 3 | . 2 . . 1 Investigation 1 | . 1 . . . Extermination . | . . . . . Reinforcement 2 | . 1 . . 1 Assault . | . . . . . Garrison . | . . . . . Intercept . | . . . . . Searches Triggered . | . . . . . Construction Impeded . | . . . . . Haulers Reinforced . | . . . . . Active Scanning Responses . | . . . . . Cargo Convoy Interrupts . | . . . . . Stealth | -11 -10 -9 -9 -8 --------- Run | Yrd Mat Mat Min Mat Distress Signals 4 | . 2 1 . 1 Communications Jammed . | . . . . . Distress Signals . | . . . . . Times Spotted 39 | . 5 10 15 9 Peak Tracking Total 8 | . 4 5 4 8 Tactical Retreats 3 | . . 1 2 . Traps | -11 -10 -9 -9 -8 ------- Run | Yrd Mat Mat Min Mat Traps Triggered . | . . . . . Indirectly . | . . . . . Trap Hack Attempts . | . . . . . Triggered . | . . . . . Disarmed . | . . . . . Reprogrammed . | . . . . . Reused . | . . . . . Traps Extracted . | . . . . . Installed . | . . . . . Triggered . | . . . . . Machines | -11 -10 -9 -9 -8 ---------- Run | Yrd Mat Mat Min Mat Machines Disabled . | . . . . . Max in Single Turn . | . . . . . Machines Repaired . | . . . . . Machines Dismantled . | . . . . . Machines Sabotaged . | . . . . . Overloaded Fab Kills . | . . . . . Hacking | -11 -10 -9 -9 -8 --------- Run | Yrd Mat Mat Min Mat Machines Accessed 1 | . 1 . . . Terminals 1 | . 1 . . . Fabricators . | . . . . . Repair Stations . | . . . . . Recycling Units . | . . . . . Scanalyzers . | . . . . . Garrison Access . | . . . . . Total Hacks 3 | . 3 . . . Successful . | . . . . . Failed 3 | . 3 . . . Catastrophic 1 | . 1 . . . Database Lockouts . | . . . . . Manual 3 | . . 3 . . Terminals 3 | . 3 . . . Fabricators . | . . . . . Repair Stations . | . . . . . Recycling Units . | . . . . . Scanalyzers . | . . . . . Garrison Access . | . . . . . Terminal Hacks . | . . . . . Fabricator Hacks . | . . . . . Repair Station Hacks . | . . . . . Recycling Unit Hacks . | . . . . . Scanalyzer . | . . . . . Garrison Access Hacks . | . . . . . Unauthorized Hacks . | . . . . . Terminals . | . . . . . Fabricators . | . . . . . Repair Stations . | . . . . . Recycling Units . | . . . . . Scanalyzers . | . . . . . Garrison Access . | . . . . . Data Cores Recovered . | . . . . . Used . | . . . . . Hacking Detections 2 | . 1 1 . . Full Trace Events 1 | . 1 . . . Feedback Events . | . . . . . Feedback Blocked . | . . . . . Robot Schematics Acquired . | . . . . . Robots Built . | . . . . . Authchips . | . . . . . Time . | . . . . . Total Robot Build Rating . | . . . . . Part Schematics Acquired . | . . . . . Parts Built . | . . . . . Authchips . | . . . . . Time . | . . . . . Total Part Build Rating . | . . . . . Parts Repaired . | . . . . . Time . | . . . . . Parts Recycled . | . . . . . Recycled Matter . | . . . . . Retrieved Matter . | . . . . . Retrieved Components . | . . . . . Parts Scanalyzed . | . . . . . Part Schematics Acquired . | . . . . . Parts Damaged . | . . . . . Bothacking | -11 -10 -9 -9 -8 ------------ Run | Yrd Mat Mat Min Mat Used RIF Installer . | . . . . . Robots Hacked . | . . . . . Non-combat . | . . . . . Combat . | . . . . . Robot Hacks Applied . | . . . . . Relay Couplers Released . | . . . . . Fabnet Peak Effective % . | . . . . . Robots Rewired . | . . . . . Allies Hacked . | . . . . . Hacks Repelled . | . . . . . Allies | -11 -10 -9 -9 -8 -------- Run | Yrd Mat Mat Min Mat Total Allies . | . . . . . Largest Group . | . . . . . Highest-Rated Group . | . . . . . Highest-Rated Ally . | . . . . . Total Orders . | . . . . . Ally Attacks . | . . . . . Total Damage . | . . . . . Kills . | . . . . . Allies Corrupted . | . . . . . Allies Melted . | . . . . . Intel | -11 -10 -9 -9 -8 ------- Run | Yrd Mat Mat Min Mat Robot Analysis Total . | . . . . . Derelict Logs Recovered 1 | . . . 1 . Drone Launches . | . . . . . Drone Recoveries . | . . . . . Exploration | -11 -10 -9 -9 -8 ------------- Run | Yrd Mat Mat Min Mat Turns Passed 647 | 5 79 132 355 76 Spaces Moved 851 | 3 86 162 438 162 Core . | . . . . . Treads . | . . . . . Legs . | . . . . . Wheels 112 | 3 86 23 . . Hover . | . . . . . Flight 739 | . . 139 438 162 Fastest Speed 34 | 90 90 34 34 37 Average Speed 43 | 90 90 42 36 37 Slowest Speed 90 | 90 90 90 40 37 Overloaded Moves . | . . . . . Propulsion Burnouts . | . . . . . Robots Hopped 2 | . . 1 1 . Cave-ins Triggered . | . . . . . Exploration Rate (%) 24 | 1 25 17 65 14 Regions Visited 4 Branch Regions 1 Pre-discovered Areas . | . . . . . Known Exits Taken . | . . . . . Unknown Exits Taken 4 | 1 1 1 1 . Scrap Searched . | . . . . . Spaces Dug . | . . . . . Terrain Destroyed . | . . . . . Melee . | . . . . . Projectile . | . . . . . AOE . | . . . . . Terrain Rammed . | . . . . . Walls Destroyed . | . . . . . Machines Disabled . | . . . . . Actions | -11 -10 -9 -9 -8 --------- Run | Yrd Mat Mat Min Mat Total 1053 | 4 87 196 592 174 Wait 121 | . . 4 116 1 Move 843 | 2 85 159 435 162 Hop 2 | . . 1 1 . Pick Up 13 | . 1 4 4 4 Fast Attach 1 | . . 1 . . Attach 13 | . 1 2 5 5 Detach 1 | . . . 1 . Swap 4 | 2 . 2 . . Drop 8 | . . 8 . . Fire 47 | . . 15 30 2 Melee . | . . . . . Ram . | . . . . . Kick . | . . . . . Crush . | . . . . . Escape Stasis . | . . . . . Rewire . | . . . . . Trap . | . . . . . Miscellaneous . | . . . . . Route ------- -11/Scrapyard -10/Materials -9/Materials -9/Mines -8/Materials History --------- Turn | Location | Event 4 | -11/Scrapyard | Discovered new exit (range 0) 6 | -11/Scrapyard | Entered Materials 72 | -10/Materials | Discovered new exit (range 16) 85 | -10/Materials | Entered another Materials area 85 | -9/Materials | Evolved 2 slots: Propulsion x1, Utility x1 185 | -9/Materials | Discovered new exit (range 16) 217 | -9/Materials | Entered Mines 308 | -9/Mines | Build established: Mutant 315 | -9/Mines | Learned location of 1 exit from Lower Caves 326 | -9/Mines | Lost 3 parts (1p1n1w) 332 | -9/Mines | Found a hidden stash of uninstalled traps 568 | -9/Mines | Discovered new exit (range 8) 572 | -9/Mines | Entered Materials 572 | -8/Materials | Evolved 2 slots: Power x1, Propulsion x1 648 | -8/Materials | Self-destructed Last Messages --------------- 00528_ Acquired 16 matter. 00529_ Acquired Flight Unit. 00545_ T-07 Excavator is excavating. 00568_ EXIT=FOUND 00568_ K-01 Serf cleans the Laser Drill. 00569_ Acquired 42 matter. PARAMETERS=POWER+1,PROPULSION+1 LOCATION=UNKNOWN GOAL=ESCAPE 00592_ O-16 Technician: "IFF HANDSHAKE FAILED. SECURING TERMINAL." 00600_ Acquired Shock Rifle. 00603_ Acquired Imp. Heat Sink. 00615_ ALERT: Hostiles spotted, dispatching reinforcements to Terminal M003. 00616_ Acquired Adv. Visual Processing Unit. 00636_ W-25 Informer sends out distress signal. 00639_ Acquired Nuclear Core. 00645_ S-10 Pest misfires. 00646_ Flight Unit destroyed. 00647_ S-10 Pest misfires. Map ----- +----------------------------------------------------+ | ?????????????????????????????????????????????????? | | ?????????????????????????????????????????????????? | | ??????##?????????????????????????????????????????? | | ### #?????????????????????????????????????????? | | #?????????????????????????????????????????? | | ?????????????????????????????????????????????? | | ?????????????????????????????????????????????????? | | ?????????????????????????????????????????????????? | | ?????????????????????????????????????????????????? | | ?????????????????????????????????????????????????? | | ?????????????????????????????????????????????????? | | ?????????????????????????????????????????????????? | | ?????????????????????????????????????????????????? | | ?????????????????????????????????????????????????? | | ?????????????????????????????????????????????????? | | ?????????????????????????????????????????????????? | | ?????????????????????????????????????????????????? | | ##########???????????????????????????????????????? | | %] #???????????????????????????????????????? | | ]] ##############+########## ?????????????? | | ]] # ????????????? | | """"" # H????????????? | | """"" # ????????????? | | """"" + ###############?#+###???????????????? | | # #??# s#?? #???????????????? | | # #??# @#? #???????????????? | | ########## #??# ss#? """#???????????????? | | #??# ! s #! """#???????????????? | | ############/# """#???????????????? | | g/ #???????????????? | | #### #####+########+#### ########???????????????? | | ???# ## #?? ?# #??????????????????????? | | ???# ## """"" #??""" # #??????????????????????? | | ???# ## """"" #? """ # #??????????????????????? | | ???# ## """"" #? """ ug#??????????????????????? | | ???# ## """"" ## #g#??????????????????????? | | ??? ## """"" ######### #??????????????????????? | | ???# ## """""?????????# #??????????????????????? | | ???# ## """""?????????# #??????????????????????? | | ???# ## #???????# #??????????????????????? | | ???+ ###########???????? ???????????????????????? | | ???# #?????????????????? ???????????????????????? | | ???? ??????????????????? ???????????????????????? | | ???? ??????????????????? ???????????????????????? | | ???? ??????????????????? ???????????????????????? | | ?????????????????????????/???????????????????????? | | ????????????????????????? ???????????????????????? | | ?????????????????????????"???????????????????????? | | ?????????????????????????????????????????????????? | | ?????????????????????????????????????????????????? | +----------------------------------------------------+ Best States ------------- Heat Dissipation 31 Energy Generation 10 Energy Capacity 250 Matter Stores 300 Matter Capacity 300 Sight Range 20 Terrain Scan Density 10 Additional Mass Support 6 Evasion (%) 63 Item Schematics ----------------- None Robot Schematics ------------------ None Fabricated ------------ Nothing Alien Tech Used ----------------- None Achievements -------------- None Challenges ------------ None Game ------ Seed NavigationTacticalSword Manual? 0 Play Time 00:12:13 Cumulative 19.4 hours Start 2024.03.31 @ 18:49:34 End 2024.03.31 @ 19:02:36 Sessions 3 Manual Loads 0 Difficulty Rogue Special Mode None Game No. 67 Rogue 63 Adventurer 4 Explorer 0 Win Type - Total 0 Types 0/0/0/0/0/0/0/0/0 Lore% 22 Gallery% 22 Achievement% 21 Wizard Run 0 Options --------- Layout 0 ASCII 0 Keyboard 0 Movement Mouse Keybinds 1 Fullscreen 2 Font 18/SmallcapsGlow Map View 76x50 Zoom Use 0% Tactical HUD 1 Map Filters NONE Filters NONE Steam X RUN: fbe45868-1f53-49ab-b75c-1815a7c9576d